bitfinex/quotes_SOLUSD_20260310
["timestamp","ask_amount","ask_price","bid_price","bid_amount"]
[1773130262827,1.46894987,87.289,87.26,10.78085341]
[1773130263326,1.46894987,87.279,87.25,10.78085341]
[1773130263531,1.46894987,87.279,87.24,10.98085341]
[1773130263825,1.46894987,87.269,87.24,10.98085341]
[1773130264023,1.46894987,87.279,87.24,10.98085341]
[1773130264423,1.46894987,87.269,87.24,10.98085341]
[1773130264740,1.46894987,87.269,87.24,0.2]
[1773130265036,1.46894987,87.269,87.25,10.78085341]
[1773130265234,1.46894987,87.269,87.24,0.2]
[1773130265535,10.78085341,87.28,87.24,10.98085341]
[1773130265723,10.78085341,87.29,87.25,10.78085341]
[1773130265924,10.78085341,87.27,87.24,0.2]
[1773130266321,10.78085341,87.28,87.24,10.98085341]
[1773130267129,10.78085341,87.27,87.24,10.98085341]
[1773130267323,10.78085341,87.28,87.24,10.98085341]
[1773130267520,1.46402049,87.289,87.25,10.78085341]
[1773130267720,1.46402049,87.279,87.24,10.98085341]
[1773130267921,1.46402049,87.269,87.24,0.2]
[1773130268112,1.46402049,87.259,87.24,0.2]
[1773130268313,1.46402049,87.249,87.22,10.78085341]
[1773130268530,1.46402049,87.249,87.21,0.2]
[1773130268723,1.46402049,87.269,87.24,10.78085341]
[1773130268935,1.46402049,87.269,87.231,1.43739318]
[1773130269614,1.46402049,87.259,87.231,1.43739318]
[1773130269945,1.46402049,87.239,87.21,10.98085341]
[1773130270244,1.46402049,87.259,87.221,1.43739318]
[1773130270411,1.46402049,87.239,87.21,0.2]
[1773130270613,3.69383402,87.297,87.21,0.2]
[1773130270614,1.46402049,87.249,87.22,10.78085341]
[1773130270914,1.46402049,87.249,87.22,12.21824659]
[1773130271114,1.46402049,87.258,87.23,10.78085341]
[1773130271542,1.46402049,87.258,87.221,1.43739318]
[1773130271714,1.46402049,87.258,87.23,10.78085341]
[1773130271914,1.46402049,87.258,87.221,1.43739318]
[1773130272117,1.46402049,87.258,87.23,10.78085341]
[1773130272830,1.46402049,87.258,87.221,1.43739318]
[1773130274225,1.46402049,87.258,87.211,1.43739318]
[1773130274423,1.46402049,87.258,87.22,10.81861975]
[1773130274823,1.46402049,87.257,87.22,10.81861975]
[1773130275133,1.46402049,87.249,87.22,10.81861975]
[1773130275330,1.46402049,87.259,87.23,10.81861975]
[1773130275514,1.46402049,87.259,87.221,1.43739318]
[1773130276114,1.46402049,87.259,87.22,10.81861975]
[1773130276316,1.46402049,87.249,87.212,1.43739318]
[1773130276863,1.46402049,87.269,87.231,1.43739318]
[1773130277036,1.46402049,87.259,87.222,1.43739318]
[1773130277334,1.46402049,87.249,87.22,10.81861975]
[1773130277511,1.46402049,87.249,87.21,11.01861975]
[1773130278331,1.46402049,87.229,87.21,0.2]
[1773130278717,1.46402049,87.229,87.21,11.01861975]
[1773130279033,1.46402049,87.242,87.22,10.81861975]
[1773130279728,1.46402049,87.242,87.211,1.43739318]
[1773130279915,1.46402049,87.242,87.21,11.01861975]
[1773130280114,1.46402049,87.239,87.21,0.2]
[1773130280530,1.46402049,87.229,87.21,0.2]
[1773130281213,1.46402049,87.229,87.2,0.2]
[1773130281829,1.46402049,87.229,87.2,11.01861975]
[1773130282034,1.46402049,87.229,87.2,0.2]
[1773130282237,1.46402049,87.219,87.19,0.2]
[1773130282432,1.46402049,87.267,87.2,10.81861975]
[1773130282628,1.46402049,87.229,87.2,10.81861975]
[1773130284020,1.46402049,87.229,87.191,1.43739318]
[1773130284225,1.46402049,87.219,87.19,11.01861975]
[1773130284938,1.46402049,87.217,87.2,10.81861975]
[1773130285131,11.46552317,87.218,87.2,10.81861975]
[1773130285825,1.46402049,87.217,87.19,11.01861975]
[1773130286026,1.46402049,87.217,87.19,0.2]
[1773130286228,4.82477569,87.271,87.19,0.2]
[1773130286229,11.4646821,87.225,87.191,1.43739318]
[1773130286434,1.46402049,87.224,87.2,10.81861975]
[1773130286745,11.46486591,87.223,87.192,1.43739318]
[1773130286928,11.46486591,87.223,87.2,10.81861975]
[1773130287131,12.9288864,87.223,87.192,1.43739318]
[1773130287447,1.46402049,87.222,87.19,11.01861975]
[1773130287648,1.46402049,87.222,87.2,10.81861975]
[1773130287942,1.46402049,87.222,87.191,12.90646682]
[1773130288121,1.46402049,87.222,87.2,10.81861975]
[1773130289245,1.46402049,87.231,87.2,10.81861975]
[1773130289428,206.4046608,87.71,87.202,1.43739318]
[1773130289429,1.46402049,87.238,87.202,1.43739318]
[1773130289630,1.46402049,87.238,87.21,10.81861975]
[1773130290333,1.46402049,87.238,87.202,1.43739318]
[1773130290927,1.46402049,87.238,87.21,10.81861975]
[1773130291334,1.46402049,87.236,87.21,10.81861975]
[1773130291729,1.46402049,87.236,87.202,1.43739318]
[1773130292631,1.46402049,87.236,87.203,11.46749538]
[1773130293144,1.46402049,87.236,87.21,10.81861975]
[1773130293649,1.49443483,87.244,87.22,10.81861975]
[1773130293952,11.46266408,87.24,87.22,12.23442788]
[1773130295534,11.46266408,87.24,87.22,10.81861975]
[1773130295751,1.49443483,87.257,87.221,1.41580813]
[1773130296138,1.49443483,87.256,87.221,1.41580813]
[1773130297155,1.49443483,87.254,87.22,10.81861975]
[1773130297343,1.49443483,87.249,87.22,10.81861975]
[1773130297545,40.11231448,87.255,87.221,1.41580813]
[1773130297848,40.11231448,87.255,87.2,4.03952614]
[1773130297849,1.49443483,87.254,87.23,3.46613862]
[1773130298245,1.49443483,87.249,87.21,4.03952614]
[1773130298549,1.49443483,87.239,87.202,1.41580813]
[1773130299147,1.49443483,87.237,87.202,1.41580813]
[1773130299547,1.49443483,87.237,87.21,4.03952614]
[1773130299849,1.49443483,87.237,87.201,12.88356652]
[1773130299850,11.46229161,87.243,87.22,4.03952614]
[1773130301752,1.49443483,87.243,87.201,1.41580813]
[1773130301942,1.49443483,87.239,87.21,4.03952614]
[1773130302457,1.49443483,87.239,87.19,0.2]
[1773130302458,1.49443483,87.229,87.191,11.46904495]
[1773130302648,1.49443483,87.229,87.191,12.88485308]
[1773130302957,1.49443483,87.229,87.192,1.41580813]
[1773130303336,1.49443483,87.229,87.2,4.03952614]
[1773130304534,4.03952614,87.23,87.192,1.41580813]
[1773130304535,11.46420874,87.228,87.192,1.41580813]
[1773130304740,11.46420874,87.228,87.19,0.2]
[1773130304741,1.49443483,87.219,87.19,0.2]
[1773130304960,1.49443483,87.209,87.19,0.2]
[1773130306874,1.49443483,87.199,87.171,1.41580813]
[1773130307055,1.49443483,87.207,87.181,1.41580813]
[1773130307354,11.46407731,87.229,87.201,1.41580813]
[1773130307558,1.49443483,87.228,87.201,1.41580813]
[1773130308055,1.49443483,87.219,87.185,1.41580813]
[1773130308241,1.49443483,87.209,87.18,4.03952614]
[1773130308845,11.4668379,87.208,87.18,15.50992891]
[1773130309145,1.49443483,87.207,87.18,15.50992891]
[1773130309347,1.49443483,87.207,87.18,4.03952614]
[1773130309659,61.35304416,87.24,87.177,1.41580813]
[1773130309660,4.03952614,87.25,87.201,1.41580813]
[1773130309859,1.49443483,87.249,87.22,4.03952614]
[1773130310446,1.49443483,87.249,87.21,5.45533427]
[1773130311162,1.49443483,87.247,87.21,5.45533427]
[1773130311459,1.49443483,87.247,87.16,49.93209593]
[1773130311460,1.49443483,87.239,87.2,5.45533427]
[1773130311660,40.11553273,87.248,87.201,1.50997825]
[1773130311876,1.40053514,87.239,87.21,4.03952614]
[1773130312156,1.40053514,87.239,87.211,1.50997825]
[1773130312664,1.40053514,87.239,87.203,1.50997825]
[1773130312959,1.40053514,87.229,87.2,4.03952614]
[1773130313163,1.40053514,87.217,87.17,1.50997825]
[1773130313346,1.40053514,87.217,87.181,1.50997825]
[1773130313546,103.15422702,87.248,87.169,40.15188885]
[1773130313547,1.40053514,87.229,87.2,4.03952614]
[1773130313940,1.40053514,87.219,87.19,4.03952614]
[1773130314550,1.40053514,87.229,87.191,1.50997825]
[1773130314739,1.40053514,87.229,87.2,4.03952614]
[1773130315147,12.86474388,87.228,87.2,4.03952614]
[1773130315363,1.40053514,87.248,87.22,4.03952614]
[1773130315749,1.40053514,87.248,87.221,1.50997825]
[1773130316162,1.40053514,87.248,87.22,4.03952614]
[1773130317366,1.40053514,87.246,87.22,4.03952614]
[1773130318285,1.40053514,87.239,87.211,1.50997825]
[1773130318480,1.40053514,87.246,87.22,5.54950439]
[1773130319172,1.40053514,87.246,87.211,1.50997825]
[1773130319379,11.46197489,87.245,87.211,11.46632805]
[1773130319581,1.40053514,87.244,87.212,1.50997825]
[1773130319787,11.46197489,87.245,87.199,1.50997825]
[1773130319788,1.40053514,87.239,87.199,1.50997825]
[1773130319958,1.40053514,87.229,87.2,4.03952614]
[1773130320278,1.40053514,87.229,87.196,11.46832465]
[1773130320473,1.40053514,87.239,87.201,1.50997825]
[1773130320662,4.03952614,87.23,87.2,5.54950439]
[1773130320974,1.40053514,87.229,87.2,4.03952614]
[1773130321570,1.40053514,87.227,87.2,4.03952614]
[1773130321856,4.03952614,87.22,87.192,1.50997825]
[1773130322480,1.40053514,87.219,87.183,12.98007245]
[1773130323160,1.40053514,87.219,87.183,1.50997825]
[1773130323665,1.37238048,87.217,87.184,11.46999449]
[1773130324774,49.89023284,87.24,87.184,11.46999449]
[1773130324775,1.37238048,87.236,87.21,4.03952614]
[1773130325873,11.46328881,87.235,87.21,4.03952614]
[1773130326052,12.83566929,87.235,87.21,4.03952614]
[1773130326252,1.37238048,87.234,87.21,4.03952614]
[1773130326560,1.37238048,87.234,87.201,1.39818741]
[1773130326862,1.37238048,87.234,87.201,12.8659458]
[1773130327260,1.37238048,87.219,87.177,1.39818741]
[1773130327461,1.37238048,87.209,87.18,1.39818741]
[1773130327659,1.37238048,87.203,87.172,1.39818741]
[1773130327860,11.46762688,87.202,87.18,4.03952614]
[1773130328073,11.46762688,87.202,87.175,12.86925699]
[1773130328267,1.37238048,87.199,87.175,1.39818741]
[1773130329361,12.83937507,87.207,87.18,4.03952614]
[1773130329556,11.46699459,87.207,87.181,1.39818741]
[1773130329776,10.82843128,87.21,87.181,1.39818741]
[1773130329960,1.37238048,87.209,87.181,1.39818741]
[1773130330757,1.37238048,87.209,87.182,11.47025762]
[1773130330963,1.37238048,87.209,87.183,1.39818741]
[1773130332277,11.4668379,87.208,87.183,1.39818741]
[1773130332479,1.37238048,87.207,87.17,10.82843128]
[1773130332664,1.37238048,87.199,87.17,10.82843128]
[1773130333076,11.4668379,87.208,87.157,1.39818741]
[1773130333077,1.37238048,87.189,87.157,1.39818741]
[1773130333362,1.37238048,87.179,87.152,1.39818741]
[1773130333560,1.37238048,87.199,87.17,10.82843128]
[1773130334186,1.37238048,87.199,87.161,1.39818741]
[1773130334378,1.37238048,87.189,87.161,1.39818741]
[1773130334562,1.37238048,87.189,87.152,1.39818741]
[1773130334862,1.37238048,87.189,87.16,10.82843128]
[1773130335488,1.37238048,87.187,87.159,1.39818741]
[1773130335687,1.37238048,87.187,87.161,11.47302119]
[1773130336935,1.37238048,87.187,87.16,10.83426029]
[1773130337071,1.37238048,87.227,87.164,1.39818741]
[1773130337266,1.37238048,87.199,87.17,10.83426029]
[1773130337467,1.37238048,87.197,87.161,11.47302119]
[1773130337672,1.37238048,87.197,87.16,10.83426029]
[1773130338184,1.37238048,87.189,87.16,10.83426029]
[1773130339575,1.37238048,87.187,87.16,10.83426029]
[1773130339985,1.37238048,87.179,87.15,11.03426029]
[1773130340282,1.37238048,87.169,87.15,0.2]
[1773130340464,1.37238048,87.187,87.15,11.03426029]
[1773130340667,1.37238048,87.179,87.15,11.03426029]
[1773130340872,1.37238048,87.169,87.15,0.2]
[1773130341268,1.37238048,87.178,87.151,1.39818741]
[1773130341573,1.37238048,87.178,87.15,11.03426029]
[1773130341574,1.37238048,87.195,87.17,10.83426029]
[1773130343494,1.37238048,87.195,87.161,1.39818741]
[1773130343677,40.13945593,87.196,87.161,1.39818741]
[1773130343678,1.37238048,87.193,87.161,12.87109762]
[1773130343872,57.32763426,87.218,87.161,12.87109762]
[1773130343873,1.37238048,87.198,87.171,1.39818741]
[1773130344079,1.37238048,87.198,87.17,10.83426029]
[1773130345796,12.84066493,87.197,87.17,10.83426029]
[1773130345996,1.37238048,87.196,87.17,10.83426029]
[1773130346190,11.46828445,87.197,87.18,12.2324477]
[1773130346191,10.92988567,87.197,87.18,12.2324477]
[1773130346393,11.46770276,87.202,87.181,1.39818741]
[1773130347401,1.37238048,87.201,87.171,1.39818741]
[1773130347602,1.37238048,87.201,87.18,10.83426029]
[1773130347795,1.37238048,87.201,87.171,1.39818741]
[1773130347796,1.37238048,87.217,87.191,1.39818741]
[1773130348176,1.37238048,87.217,87.19,10.83426029]
[1773130348592,1.37238048,87.215,87.19,10.83426029]
[1773130348979,11.46578609,87.216,87.2,10.83426029]
[1773130349796,11.46578609,87.216,87.2,4.04141731]
[1773130350382,1.37238048,87.221,87.191,1.39818741]
[1773130351492,11.46449731,87.226,87.201,1.39818741]
[1773130351797,1.37238048,87.229,87.181,1.39818741]
[1773130352095,1.37238048,87.219,87.191,1.39818741]
[1773130352482,1.37238048,87.217,87.191,1.39818741]
[1773130352998,1.37238048,87.217,87.19,4.04141731]
[1773130354990,1.3688617,87.215,87.19,4.04141731]
[1773130355800,1.3688617,87.215,87.185,11.46981257]
[1773130356107,1.3688617,87.209,87.161,1.36485013]
[1773130356310,11.46604902,87.214,87.19,4.04141731]
[1773130356609,11.46604902,87.214,87.191,1.36485013]
[1773130357075,12.83491072,87.214,87.191,1.36485013]
[1773130357278,41.50003329,87.214,87.191,1.36485013]
[1773130357497,1.3688617,87.213,87.181,1.36485013]
[1773130358087,40.1320919,87.212,87.181,1.36485013]
[1773130358287,1.3688617,87.211,87.181,1.36485013]
[1773130358800,1.3688617,87.211,87.125,45.91078245]
[1773130358801,0.86807036,87.211,87.132,1.36485013]
[1773130358982,103.19680777,87.212,87.151,1.36485013]
[1773130358983,4.04141731,87.18,87.151,1.36485013]
[1773130360206,0.869743,87.187,87.151,1.36485013]
[1773130361186,11.46946827,87.188,87.161,1.36485013]
[1773130361803,11.46815293,87.198,87.171,1.36485013]
[1773130362007,11.46644345,87.211,87.181,1.36485013]
[1773130362185,0.87304286,87.209,87.181,1.36485013]
[1773130362385,0.87304286,87.209,87.171,1.36485013]
[1773130362785,4.04141731,87.2,87.171,1.36485013]
[1773130363003,4.04141731,87.19,87.162,1.36485013]
[1773130363506,0.87467154,87.179,87.132,1.36485013]
[1773130363701,4.04141731,87.17,87.132,1.36485013]
[1773130364505,40.15188885,87.169,87.134,1.36485013]
[1773130365607,10.84212898,87.16,87.134,1.36485013]
[1773130365807,0.87788011,87.168,87.134,1.36485013]
[1773130366226,40.15188885,87.169,87.134,1.36485013]
[1773130367813,28.67992061,87.169,87.134,1.36485013]
[1773130368012,11.47104707,87.176,87.141,1.36485013]
[1773130368324,40.14866476,87.176,87.141,1.36485013]
[1773130368803,11.47104707,87.176,87.151,1.36485013]
[1773130369920,0.88555422,87.186,87.151,1.36485013]
[1773130370116,11.46933672,87.189,87.151,1.36485013]
[1773130370423,11.46933672,87.189,87.161,1.36485013]
[1773130371802,10.84212898,87.19,87.161,1.36485013]
[1773130372401,0.88996064,87.189,87.161,1.36485013]
[1773130373098,0.88996064,87.189,87.15,10.84212898]
[1773130373615,10.84212898,87.19,87.15,10.84212898]
[1773130373616,1.49903738,87.18,87.15,10.84212898]
[1773130373809,1.49903738,87.169,87.13,11.04212898]
[1773130373999,10.84212898,87.18,87.14,10.84212898]
[1773130374203,10.84212898,87.18,87.131,11.47697145]
[1773130374204,1.49903738,87.188,87.15,10.84212898]
[1773130375021,1.49903738,87.188,87.14,10.84212898]
[1773130375216,1.49903738,87.188,87.141,1.49317475]
[1773130375922,41.64263676,87.187,87.15,10.84212898]
[1773130376222,1.49903738,87.186,87.151,1.49317475]
[1773130378200,1.49903738,87.184,87.151,1.49317475]
[1773130378519,10.84212898,87.18,87.151,1.49317475]
[1773130380021,1.49903738,87.178,87.151,1.49317475]
[1773130381977,1.49903738,87.176,87.141,1.49317475]
[1773130382137,1.49903738,87.149,87.13,0.2]
[1773130382425,1.49903738,87.139,87.101,1.49317475]
[1773130382620,10.84212898,87.13,87.101,1.49317475]
[1773130383025,1.49903738,87.129,87.101,1.49317475]
[1773130383326,235.15376759,87.177,87.082,1.49317475]
[1773130383327,1.49903738,87.119,87.082,1.49317475]
[1773130384124,1.4959098,87.117,87.084,1.46589227]
[1773130385027,11.47894761,87.116,87.085,11.48303381]
[1773130385228,11.47894761,87.116,87.086,1.46589227]
[1773130385739,11.47855232,87.119,87.091,1.46589227]
[1773130386235,1.4959098,87.128,87.091,1.46589227]
[1773130386236,11.47796349,87.124,87.091,1.46589227]
[1773130387229,11.47796349,87.124,87.08,11.04212898]
[1773130387420,11.47796349,87.124,87.091,1.46589227]
[1773130387820,11.47796349,87.124,87.1,4.05065226]
[1773130388007,1.4959098,87.149,87.111,1.46589227]
[1773130389122,1.4959098,87.149,87.119,1.46589227]
[1773130389324,11.47473263,87.148,87.12,5.51654453]
[1773130389513,11.47473263,87.148,87.121,1.46589227]
[1773130390434,11.47473263,87.148,87.13,4.05065226]
[1773130390731,12.96682529,87.177,87.141,1.46589227]
[1773130391228,1.4959098,87.176,87.141,1.46589227]
[1773130391627,40.14912531,87.175,87.141,1.46589227]
[1773130392534,11.47117866,87.175,87.143,1.46589227]
[1773130393417,11.47117866,87.175,87.151,1.46589227]
[1773130393620,11.46999449,87.184,87.151,1.46589227]
[1773130394836,11.46999449,87.184,87.152,11.47420598]
[1773130395135,11.46999449,87.184,87.153,1.46589227]
[1773130396234,11.46999449,87.184,87.161,1.46589227]
[1773130397636,11.46762688,87.202,87.171,1.46589227]
[1773130398241,12.96353668,87.202,87.18,10.83476891]
[1773130398740,1.4959098,87.201,87.172,1.46589227]
[1773130398933,1.4959098,87.189,87.161,1.46589227]
[1773130399238,1.4959098,87.189,87.15,10.83476891]
[1773130399441,1.4959098,87.189,87.151,1.46589227]
[1773130399817,11.46946827,87.188,87.151,1.46589227]
[1773130400024,1.4959098,87.187,87.151,1.46589227]
[1773130400745,1.4959098,87.179,87.144,1.46589227]
[1773130400919,1.4959098,87.179,87.141,1.46589227]
[1773130402041,1.4959098,87.179,87.123,3.69383402]
[1773130402042,1.4959098,87.169,87.132,12.94267736]
[1773130402340,1.4959098,87.169,87.133,1.46589227]
[1773130402838,1.4959098,87.169,87.14,10.83476891]
[1773130403043,1.4959098,87.149,87.09,1.46589227]
[1773130403226,10.83476891,87.11,87.081,1.46589227]
[1773130403545,1.4959098,87.109,87.081,1.46589227]
[1773130403729,1.4959098,87.109,87.08,0.2]
[1773130403730,1.4959098,87.134,87.091,1.46589227]
[1773130404039,11.47736663,87.128,87.091,1.46589227]
[1773130404247,10.83476891,87.12,87.091,1.46589227]
[1773130404535,1.4959098,87.119,87.091,1.46589227]
[1773130405528,1.4959098,87.127,87.093,1.46589227]
[1773130406650,11.47736663,87.128,87.101,1.46589227]
[1773130406830,1.4959098,87.137,87.111,1.46589227]
[1773130407146,11.47631289,87.136,87.111,1.46589227]
[1773130408639,12.97222269,87.136,87.111,1.46589227]
[1773130408843,1.4959098,87.129,87.101,1.46589227]
[1773130410350,1.4959098,87.129,87.09,12.30066118]
[1773130410729,1.4959098,87.127,87.095,1.46589227]
[1773130412648,1.4959098,87.125,87.09,10.83476891]
[1773130413150,1.4959098,87.125,87.091,1.46589227]
[1773130414549,1.4959098,87.125,87.092,1.40786546]
[1773130415440,11.47789357,87.124,87.1,10.83476891]
[1773130416454,12.90736405,87.122,87.094,1.40786546]
[1773130416850,11.47815706,87.122,87.101,1.40786546]
[1773130417232,11.4772349,87.129,87.11,10.83476891]
[1773130417454,11.4772349,87.129,87.111,1.40786546]
[1773130417660,11.47648989,87.135,87.111,1.40786546]
[1773130417846,11.47525934,87.144,87.121,1.40786546]
[1773130418436,12.90341297,87.152,87.121,1.40786546]
[1773130418662,1.42920699,87.151,87.121,1.40786546]
[1773130419172,10.83476891,87.15,87.121,1.40786546]
[1773130419500,1.42920699,87.149,87.121,1.40786546]
[1773130419642,1.42920699,87.149,87.111,1.40786546]
[1773130420158,1.42920699,87.149,87.111,11.47960647]
[1773130420354,1.42920699,87.149,87.112,1.40786546]
[1773130420738,1.42920699,87.147,87.114,1.40786546]
[1773130420964,1.42920699,87.147,87.12,10.83476891]
[1773130421264,11.47473263,87.148,87.121,1.40786546]
[1773130421757,11.47473263,87.148,87.131,1.40786546]
[1773130422461,1.42920699,87.158,87.131,1.40786546]
[1773130423169,1.42920699,87.158,87.13,10.83476891]
[1773130423352,1.42920699,87.158,87.131,1.40786546]
[1773130425065,1.42920699,87.156,87.123,1.40786546]
[1773130425251,1.42920699,87.156,87.13,10.83476891]
[1773130425657,1.42920699,87.156,87.13,12.24263437]
[1773130425863,1.42920699,87.156,87.131,1.40786546]
[1773130426368,11.47236307,87.166,87.141,1.40786546]
[1773130426545,11.47236307,87.166,87.14,10.83476891]
[1773130426546,1.42920699,87.149,87.115,1.40786546]
[1773130427262,1.42920699,87.147,87.12,10.83476891]
[1773130427660,1.42920699,87.147,87.115,1.40786546]
[1773130428860,1.42920699,87.147,87.11,10.83476891]
[1773130428861,1.42920699,87.17,87.131,1.40786546]
[1773130429079,1.42920699,87.17,87.142,1.40786546]
[1773130429369,11.47196824,87.169,87.15,10.83476891]
[1773130429867,11.47196824,87.169,87.142,1.40786546]
[1773130430756,11.47196824,87.169,87.151,1.53184604]
[1773130431057,1.554927,87.166,87.133,1.53184604]
[1773130431243,1.554927,87.166,87.14,10.83476891]
[1773130431563,11.47223146,87.167,87.141,1.53184604]
[1773130431955,1.554927,87.166,87.141,1.53184604]
[1773130432260,1.554927,87.166,87.133,1.53184604]
[1773130433059,1.554927,87.166,87.14,10.83476891]
[1773130433444,1.554927,87.164,87.133,1.53184604]
[1773130434361,1.554927,87.164,87.135,1.53184604]
[1773130434861,1.554927,87.164,87.13,10.83476891]
[1773130435248,1.554927,87.164,87.131,1.53184604]
[1773130435649,1.554927,87.162,87.131,1.53184604]
[1773130436154,1.554927,87.159,87.121,1.53184604]
[1773130436343,4.04720961,87.15,87.121,1.53184604]
[1773130436543,1.554927,87.15,87.121,1.53184604]
[1773130438747,1.554927,87.148,87.121,1.53184604]
[1773130438951,1.554927,87.139,87.101,1.53184604]
[1773130439477,4.04720961,87.12,87.091,1.53184604]
[1773130439672,1.554927,87.119,87.091,1.53184604]
[1773130440254,1.554927,87.126,87.092,1.53184604]
[1773130440446,1.554927,87.134,87.101,1.53184604]
[1773130440768,1.554927,87.128,87.101,1.53184604]
[1773130441173,1.554927,87.128,87.091,1.53184604]
[1773130441484,11.4772349,87.129,87.101,1.53184604]
[1773130441662,1.554927,87.128,87.101,1.53184604]
[1773130442952,11.47749836,87.127,87.101,1.53184604]
[1773130443479,1.554927,87.126,87.101,1.53184604]
[1773130443981,1.56136442,87.144,87.111,1.53101596]
[1773130444281,1.56136442,87.119,87.08,0.2]
[1773130444576,1.56136442,87.109,87.08,0.2]
[1773130445070,40.18000642,87.108,87.08,0.2]
[1773130445371,1.56136442,87.107,87.08,0.2]
[1773130447272,1.56136442,87.099,87.08,1e-08]
[1773130448065,4.04720961,87.09,87.08,1e-08]
[1773130448382,1.56136442,87.089,87.07,0.2]
[1773130449656,11.48263825,87.088,87.07,0.2]
[1773130449871,1.56136442,87.087,87.07,0.2]
[1773130451389,11.4811508,87.1,87.071,13.01589611]
[1773130451562,11.4811508,87.1,87.072,1.53101596]
[1773130451877,1.56136442,87.104,87.081,1.53101596]
[1773130452176,11.48066082,87.103,87.081,1.53101596]
[1773130455578,1.56136442,87.103,87.081,1.53101596]
[1773130456481,1.56136442,87.103,87.072,1.53101596]
[1773130457557,11.48079263,87.102,87.073,11.48461635]
[1773130457757,13.04215705,87.102,87.08,4.0524743]
[1773130457958,1.56136442,87.119,87.091,1.53101596]
[1773130458159,1.56136442,87.119,87.1,4.0524743]
[1773130458372,1.56136442,87.119,87.091,1.53101596]
[1773130460863,1.56136442,87.117,87.091,1.53101596]
[1773130461784,1.56136442,87.117,87.081,1.53101596]
[1773130462086,1.56136442,87.117,87.082,1.53101596]
[1773130462760,40.17631663,87.116,87.082,1.53101596]
[1773130462960,1.56136442,87.115,87.082,1.53101596]
[1773130463177,1.56136442,87.115,87.08,4.0524743]
[1773130463383,1.56136442,87.115,87.082,1.53101596]
[1773130463779,1.56136442,87.115,87.09,4.0524743]
[1773130463992,1.56136442,87.115,87.082,1.53101596]
[1773130464461,57.38024742,87.138,87.08,4.0524743]
[1773130464462,1.56136442,87.109,87.08,4.0524743]
[1773130464869,1.56136442,87.109,87.09,4.0524743]
[1773130466573,13.04136625,87.108,87.087,1.53101596]
[1773130467287,11.48000183,87.108,87.087,1.53101596]
[1773130467589,11.48000183,87.108,87.09,4.0524743]
[1773130468086,11.47940887,87.113,87.091,1.53101596]
[1773130468287,11.47940887,87.113,87.088,11.48263825]
[1773130468288,1.56136442,87.128,87.089,1.53101596]
[1773130468466,1.56136442,87.128,87.088,11.48263825]
[1773130468467,1.56136442,87.126,87.091,1.53101596]
[1773130468667,1.56136442,87.126,87.092,1.53101596]
[1773130468869,1.56136442,87.119,87.08,4.0524743]
[1773130469099,40.17124427,87.127,87.071,1.53101596]
[1773130469100,1.56136442,87.109,87.071,1.53101596]
[1773130469589,1.56136442,87.099,87.071,1.53101596]
[1773130470572,1.56136442,87.097,87.071,1.53101596]
[1773130470992,1.56136442,87.097,87.073,1.53101596]
[1773130471688,1.56136442,87.097,87.07,0.2]
[1773130472179,1.56136442,87.097,87.071,1.53101596]
[1773130472377,1.56136442,87.149,87.091,1.53101596]
[1773130472575,45.88473942,87.175,87.071,11.48488015]
[1773130472576,1.56136442,87.148,87.121,1.53101596]
[1773130472894,32.73550133,87.16,87.092,40.18738804]
[1773130472895,1.56136442,87.149,87.11,4.0524743]
[1773130473093,1.56136442,87.139,87.11,4.0524743]
[1773130473276,1.56136442,87.139,87.111,1.53101596]
[1773130473478,1.52285266,87.157,87.12,4.0524743]
[1773130473693,1.52285266,87.149,87.12,4.0524743]
[1773130474188,1.52285266,87.139,87.107,1.50807028]
[1773130474495,1.52285266,87.137,87.11,4.0524743]
[1773130474994,1.52285266,87.137,87.1,11.4809378]
[1773130474995,11.47550039,87.143,87.12,4.0524743]
[1773130475203,11.47550039,87.143,87.121,1.50807028]
[1773130475989,12.99835305,87.143,87.12,4.0524743]
[1773130478777,1.52285266,87.142,87.12,4.0524743]
[1773130478978,1.52285266,87.142,87.114,1.50807028]
[1773130479476,1.52285266,87.142,87.12,4.0524743]
[1773130479688,1.52285266,87.129,87.083,1.50807028]
[1773130479883,1.52285266,87.119,87.083,1.50807028]
[1773130481194,1.52285266,87.117,87.083,1.50807028]
[1773130481497,1.52285266,87.109,87.076,12.99223657]
[1773130481674,1.52285266,87.109,87.08,5.56054458]
[1773130481876,1.52285266,87.109,87.081,1.50807028]
[1773130483094,1.52285266,87.116,87.09,5.56054458]
[1773130483293,11.47907937,87.115,87.09,5.56054458]
[1773130483498,1.52285266,87.114,87.083,1.50807028]
[1773130483794,1.52285266,87.109,87.08,4.0524743]
[1773130483975,1.52285266,87.109,87.08,5.56054458]
[1773130484908,11.48000183,87.108,87.081,1.50807028]
[1773130485085,1.52285266,87.107,87.08,5.56054458]
[1773130486191,1.52285266,87.107,87.082,1.50807028]
[1773130486796,13.00305241,87.107,87.082,1.50807028]
[1773130487033,11.4795898,87.112,87.09,4.0524743]
[1773130487205,13.00244246,87.112,87.081,1.50807028]
[1773130487381,1.52285266,87.111,87.081,1.50807028]
[1773130488204,1.52285266,87.109,87.08,4.0524743]